[Event "7th Sharjah Masters 2024"]
[Site "Sharjah"]
[Date "2024.05.22"]
[Round "9.26"]
[White "Sjugirov, Sanan"]
[Black "Mchedlishvili, Mikheil"]
[Result "1/2-1/2"]
[ECO "E48"]
[WhiteElo "2692"]
[BlackElo "2569"]
[Annotator "TA"]
[PlyCount "135"]
[EventDate "2024.05.13"]
[EventType "swiss"]
[EventCountry "UAE"]
[SourceTitle "playchess.com"]
[Source "ChessBase"]
[SourceQuality "1"]
[TimeControl "5400+30"]

{[%evp 59,135,72,68,51,56,35,34,28,34,36,40,17,108,131,120,131,126,106,104,104,142,146,124,138,178,98,87,109,120,64,47,47,128,23,27,0,0,0,0,0,0,0,0,0,0,0,0,0,0,0,0,0,0,0,9,16,27,0,14,8,71,0,16,8,8,0,0,0,10,0,0,0,0,-8,0,0,0,-8]} 1. d4 {[%emt 0:00:04]} Nf6 {[%emt 0:00:15]} 2. c4 {[%emt 0:00:05]} e6 {[%emt 0:00:33]} 3. Nc3 {[%emt 0:00:08]} Bb4 {[%emt 0:01:18]} 4. e3 {[%emt 0:00:06]} c5 {[%emt 0:02:42]} 5. Bd3 {[%emt 0:00:09]} Nc6 {[%emt 0:02:03]} 6. Nge2 {[%emt 0:00:13]} cxd4 {[%emt 0:02:02]} 7. exd4 {[%emt 0:00:07]} d5 {[%emt 0:00:39]} 8. cxd5 {[%emt 0:00:10]} Nxd5 {[%emt 0:01:54]} 9. O-O {[%emt 0:00:11]} O-O {[%emt 0:00:27]} 10. a3 {[%emt 0:00:06]} Bd6 {[%emt 0:01:26]} 11. Re1 {[%emt 0:00:15]} Qh4 {[%emt 0:12:55]} 12. g3 {[%emt 0:01:16]} Qh5 {[%emt 0:00:25]} 13. Nxd5 {[%emt 0:00:09]} exd5 {[%emt 0:00:58]} 14. Bf4 {[%emt 0:00:08]} Be7 {[%emt 0:00:56]} 15. Qb3 {[%emt 0:15:58]} Bh3 {[%emt 0:14:04]} 16. Be3 {[%emt 0:13:06]} Bd6 {[%emt 0:04:12]} 17. Nc3 {[%emt 0:01:37]} Rfd8 {[%emt 0:07:05]} 18. Be2 {[%emt 0:04:54]} Bg4 {[%emt 0:03:14]} 19. Bxg4 {[%emt 0:10:14]} Qxg4 {[%emt 0:00:08]} 20. Qxb7 {[%emt 0:00:10]} Ne7 {[%emt 0:05:12]} 21. Qa6 {[%emt 0:05:33]} Nf5 {[%emt 0:01:07]} 22. Qe2 {[%emt 0:00:42]} Qg6 {[%emt 0:00:57]} 23. Rad1 {[%emt 0:02:48]} Rab8 {[%emt 0:00:26]} 24. Bc1 {[%emt 0:00:47]} h5 {[%emt 0:01:51]} 25. Rd3 {[%emt 0:13:10]} Re8 {[%emt 0:07:05]} 26. Qd1 {[%emt 0:07:03]} h4 {[%emt 0:03:34]} 27. Rxe8+ {[%emt 0:02:42]} Rxe8 {[%emt 0:00:06]} 28. g4 {[%emt 0:00:40]} Ne7 {[%emt 0:17:52]} 29. h3 {[%emt 0:02:13]} f5 {[%emt 0:01:00]} 30. Re3 {[%emt 0:01:21]} Rf8 {[%emt 0:01:58]} (30... Bf4 $2 31. Rxe7 Rxe7 32. Bxf4 $18) 31. Qe2 {[%emt 0:00:18]} (31. Rf3 {simplifies} Rf7 32. Qd3 fxg4 33. Qxg6 Nxg6 34. Rxf7 Kxf7 35. hxg4 Nf4 36. Bxf4 Bxf4 37. Ne2) 31... Rf6 $1 {[%emt 0:01:24]} 32. f3 {[%emt 0:13:02]} (32. Rd3 $5) 32... fxg4 {[%emt 0:01:01]} 33. fxg4 {[%emt 0:00:04]} Qf7 $1 {[%emt 0:00:47]} 34. Nb5 {[%emt 0:03:04]} Bh2+ $1 {[%emt 0:00:19]} 35. Kg2 $1 {[%emt 0:00:05]} (35. Qxh2 $2 Rf1+ 36. Kg2 Qf2#) 35... Ng6 {[%emt 0:00:14]} (35... Bg3 $11 36. Rf3 Ng6) 36. Re8+ $16 {[%emt 0:00:41]} Kh7 {[%emt 0:00:15]} 37. g5 $1 {[%emt 0:00:22]} (37. Kxh2 $2 Rf2+ 38. Kg1 Rxe2 39. Rxe2 Qf3 $19) 37... Rf2+ {[%emt 0:03:29]} 38. Qxf2 {[%emt 0:00:04]} Qxe8 {[%emt 0:00:03]} 39. Nc3 $1 {[%emt 0:00:13]} (39. Nxa7 Bb8 40. Qf3 Bxa7 $19) 39... Bb8 {[%emt 0:01:04]} 40. Qf3 {[%emt 0:01:39]} (40. Nxd5 $2 Qe4+ 41. Kg1 Qxd5 $19) 40... Qc6 {[%emt 0:00:28]} ({But not} 40... Qe1 $2 41. Qh5+ Kg8 42. Qxg6 $18) 41. Be3 {[%emt 0:01:23]} a5 {[%emt 0:00:28]} 42. Qxd5 {[%emt 0:01:27]} ({Weaker is} 42. Nxd5 Qc2+ 43. Bf2 Bg3 $11) (42. a4 $18) 42... Qb6 $16 {[%emt 0:00:51] [#]} 43. Nd1 $1 {[%emt 0:02:50]} Bf4 {[%emt 0:00:38] [#]} 44. Qf3 {[%emt 0:00:38]} (44. Kf2 $1 $16) 44... Bxe3 $14 {[%emt 0:00:37]} 45. Qxe3 {[%emt 0:00:03]} Qc6+ {[%emt 0:00:36]} (45... Qb5 $1 $14) 46. Kg1 {[%emt 0:00:14]} ({White should play} 46. Kf2 $16) 46... Qc2 $11 {[%emt 0:00:53]} 47. Nf2 {[%emt 0:01:09]} Qxb2 {[%emt 0:00:05]} 48. Kg2 {[%emt 0:00:35]} Qb5 {[%emt 0:00:59]} 49. Kh2 {[%emt 0:00:32]} Qf5 {[%emt 0:00:49]} 50. Nd3 {[%emt 0:00:24]} Qd5 {[%emt 0:00:28]} 51. Ne1 {[%emt 0:00:20]} Qa2+ {[%emt 0:01:01]} 52. Kg1 {[%emt 0:00:11]} Qb1 {[%emt 0:00:20]} 53. Kh2 {[%emt 0:01:00]} Qa2+ {[%emt 0:00:23]} 54. Kg1 {[%emt 0:00:07]} Qb1 {[%emt 0:00:02]} 55. Qd2 {[%emt 0:00:46]} Qb3 {[%emt 0:00:52]} 56. Qd3 {[%emt 0:00:17]} Qe6 {[%emt 0:01:24]} 57. Ng2 {[%emt 0:00:16]} Kh8 {[%emt 0:00:19]} 58. Qf3 {[%emt 0:00:18]} Qd6 {[%emt 0:00:31]} 59. Qe4 {[%emt 0:00:30]} a4 {[%emt 0:00:38]} (59... Kh7 $11) 60. d5 {[%emt 0:01:14]} ({Reject} 60. Nxh4 Nxh4 61. Qxh4+ Kg8 $11) (60. Qe8+ $16 Kh7 61. Qxa4) 60... Kh7 {[%emt 0:00:21]} 61. Nxh4 {[%emt 0:00:35]} Qg3+ {[%emt 0:00:12]} 62. Ng2 {[%emt 0:00:04]} Qxa3 {[%emt 0:00:14]} 63. h4 {[%emt 0:00:13]} Qa1+ {[%emt 0:00:22]} 64. Ne1 {[%emt 0:00:54]} Qe5 {[%emt 0:00:32]} 65. Qxe5 {[%emt 0:00:13]} Nxe5 {[%emt 0:00:02]} 66. Kf2 {[%emt 0:01:02]} Kg6 {[%emt 0:00:16]} 67. Nc2 {[%emt 0:00:29]} Nc4 {[%emt 0:01:13]} 68. Ke2 {[%emt 0:00:32]} 1/2-1/2

[Event "7th Sharjah Masters 2024"]
[Site "Sharjah"]
[Date "2024.05.22"]
[Round "9.27"]
[White "Horvath, Dominik"]
[Black "Yilmaz, Mustafa"]
[Result "1/2-1/2"]
[ECO "C47"]
[WhiteElo "2554"]
[BlackElo "2641"]
[Annotator "TA"]
[PlyCount "58"]
[EventDate "2024.05.13"]
[EventType "swiss"]
[EventCountry "UAE"]
[SourceTitle "playchess.com"]
[Source "ChessBase"]
[SourceQuality "1"]
[TimeControl "5400+30"]

{[%evp 16,58,0,4,0,0,0,0,0,0,0,0,0,0,0,0,0,0,0,0,0,0,7,12,12,0,0,-21,-3,-9,-13,-21,0,0,0,0,0,-3,0,0,0,-5,0,0,0]} 1. e4 {[%emt 0:00:02]} e5 {[%emt 0:00:05]} 2. Nf3 {[%emt 0:00:12]} Nc6 {[%emt 0:00:04]} 3. Nc3 {[%emt 0:01:14]} Nf6 {[%emt 0:00:14]} 4. d4 {[%emt 0:00:07]} exd4 {[%emt 0:00:30]} 5. Nxd4 {[%emt 0:00:30]} Bb4 {[%emt 0:00:30]} 6. Nxc6 {[%emt 0:00:30]} bxc6 {[%emt 0:00:00]} 7. Bd3 {[%emt 0:00:00]} d5 {[%emt 0:01:04]} 8. Bd2 {[%emt 0:00:00]} O-O {[%emt 0:03:48]} 9. O-O {[%emt 0:00:00] The position is equal.} Rb8 {[%emt 0:06:42]} 10. Re1 {[%emt 0:00:07]} Re8 {[%emt 0:06:22]} 11. h3 {[%emt 0:02:08]} dxe4 12. Bxe4 {[%emt 0:10:54]} Bxh3 {[%emt 0:39:01] [#] Strongly threatening ...Bg4.} 13. Bxc6 {[%emt 0:03:51]} Bd7 {[%emt 0:00:34]} 14. Rxe8+ {[%emt 0:13:32]} Qxe8 {[%emt 0:00:10]} 15. Bxd7 {[%emt 0:00:06]} Qxd7 {[%emt 0:00:20]} 16. Be3 {[%emt 0:00:35]} Bxc3 {[%emt 0:12:38]} 17. Qxd7 {[%emt 0:00:35]} Nxd7 {[%emt 0:00:02]} 18. bxc3 $11 {[%emt 0:00:07][%mdl 4096] Endgame. KRB-KRN} Nb6 {[%emt 0:09:31]} 19. Rb1 {[%emt 0:03:05]} f6 {[%emt 0:00:11]} 20. Rb3 {[%emt 0:13:39]} Kf7 {[%emt 0:04:04]} 21. c4 {[%emt 0:00:35]} Ke6 {[%emt 0:02:18]} 22. c5 {[%emt 0:10:00]} Nd7 {[%emt 0:00:02]} 23. Ra3 {[%emt 0:00:07]} Ra8 {[%emt 0:01:35]} 24. Bf4 {[%emt 0:07:07]} Ne5 {[%emt 0:03:21]} 25. Bxe5 {[%emt 0:02:20]} fxe5 {[%emt 0:00:02]} 26. Rg3 {[%emt 0:01:21]} Rg8 {[%emt 0:01:47]} 27. Ra3 {[%emt 0:00:04]} Ra8 {[%emt 0:00:24]} 28. Rg3 {[%emt 0:00:03]} Rg8 {[%emt 0:01:42]} 29. Ra3 {[%emt 0:00:05]} Ra8 {[%emt 0:04:08] A rather calm draw.   Weighted Error Value: White=0.02 (flawless) /Black=0.03 (flawless) .  OK:         	White=13    	Black=7} 1/2-1/2

[Event "7th Sharjah Masters 2024"]
[Site "Sharjah"]
[Date "2024.05.22"]
[Round "9.28"]
[White "Banusz, Tamas"]
[Black "Can, Emre"]
[Result "1/2-1/2"]
[ECO "A07"]
[WhiteElo "2623"]
[BlackElo "2549"]
[Annotator "TA"]
[PlyCount "71"]
[EventDate "2024.05.13"]
[EventType "swiss"]
[EventCountry "UAE"]
[SourceTitle "playchess.com"]
[Source "ChessBase"]
[SourceQuality "1"]
[TimeControl "5400+30"]

{[%evp 14,71,-27,-22,-16,-18,-22,-29,-27,-40,-16,-43,-43,-27,-30,-46,-48,-44,-39,-38,-48,-60,-68,-60,-54,-56,-20,-29,-22,-27,-16,-19,-20,-71,-77,-79,-58,-67,-45,-60,-29,-31,-11,-17,-30,-22,-14,-32,0,0,0,0,0,-16,-16,-16,-16,-16,-16,-24]} 1. Nf3 {[%emt 0:00:15]} d5 {[%emt 0:00:19]} 2. g3 {[%emt 0:00:07]} g6 {[%emt 0:00:42]} 3. Bg2 {[%emt 0:00:10]} Bg7 {[%emt 0:00:11]} 4. O-O {[%emt 0:01:40]} e5 {[%emt 0:01:07]} 5. d3 {[%emt 0:00:09]} Ne7 {[%emt 0:02:57]} 6. e4 {[%emt 0:01:52]} O-O {[%emt 0:00:35]} 7. Nc3 {[%emt 0:00:54]} d4 {[%emt 0:02:34]} 8. Ne2 {[%emt 0:01:03]} c5 {[%emt 0:00:10]} 9. Nd2 {[%emt 0:03:06]} Nbc6 {[%emt 0:03:27]} 10. f4 {[%emt 0:00:28]} f6 {[%emt 0:02:48] Black has an edge.} 11. Nf3 {[%emt 0:03:32]} Bd7 {[%emt 0:00:31]} 12. h3 {[%emt 0:02:40]} Qb6 {[%emt 0:17:29]} 13. Kh2 {[%emt 0:04:59]} f5 {[%emt 0:01:09]} 14. Nxe5 {[%emt 0:04:25]} Nxe5 {[%emt 0:00:29]} 15. fxe5 {[%emt 0:00:04]} fxe4 {[%emt 0:01:22]} 16. Bxe4 {[%emt 0:01:07]} Bxe5 {[%emt 0:06:26]} 17. Bf4 {[%emt 0:03:38]} Bg7 {[%emt 0:01:46][%cal Oa8e8]} 18. Qd2 {[%emt 0:04:58]} Bc6 {[%emt 0:01:20]} (18... Qxb2 19. Rfb1 Qa3 20. Rxb7 $16) 19. b3 {[%emt 0:03:53]} Nd5 {[%emt 0:14:05][%cal Od5e3] And now ...Ne3! would win.} 20. Bxd5+ {[%emt 0:02:55]} Bxd5 {[%emt 0:00:08]} 21. Bh6 {[%emt 0:03:24]} Bxh6 {[%emt 0:05:21]} 22. Qxh6 {[%emt 0:00:03]} Qe6 {[%emt 0:01:18]} 23. Qd2 {[%emt 0:02:23]} (23. Nf4 $11 {remains equal.} Qe3 24. Qg5 (24. Rae1 $2 Qd2+ 25. Re2 Qxe2+ 26. Nxe2 Rxf1 $19) 24... Qd2+ (24... Rf5 25. Qg4 $15) 25. Kg1) 23... Bc6 $17 {[%emt 0:00:15]} 24. Nf4 {[%emt 0:03:31]} Qd6 {[%emt 0:05:20]} 25. Rae1 {[%emt 0:02:37]} Rf6 {[%emt 0:00:08]} 26. Qe2 {[%emt 0:04:13]} Raf8 {[%emt 0:01:43] Hoping for ...g5.} (26... Re8 {feels hotter.} 27. Qg4 Re3 28. Rxe3 dxe3 29. h4 Qe5) 27. Qe5 {[%emt 0:19:14]} h6 {[%emt 0:10:36]} 28. Qxd6 {[%emt 0:03:07]} Rxd6 {[%emt 0:00:06]} 29. h4 {[%emt 0:05:11]} Rdf6 {[%emt 0:04:30] [#] ...g5 is the strong threat.} 30. Re5 {[%emt 0:01:49][%cal Of1e1]} Rf5 {[%emt 0:00:12]} 31. Rfe1 {[%emt 0:02:23] The position is equal.} g5 {[%emt 0:06:25]} 32. hxg5 {[%emt 0:00:56]} hxg5 {[%emt 0:00:05]} 33. Nh3 {[%emt 0:00:45]} g4 {[%emt 0:00:06] [#] White must now prevent ...Rxe5.} 34. Nf4 {[%emt 0:01:41]} Rxe5 {[%emt 0:00:18]} 35. Rxe5 {[%emt 0:00:02]} Re8 {[%emt 0:00:07]} 36. Rxe8+ {[%emt 0:08:09] Weighted Error Value: White=0.08 (flawless) /Black=0.08 (flawless) .  Mistake:       	White=1     	---        Inaccurate:     	White=1     	Black=3      OK:         	White=11    	Black=12} (36. Rxc5 $2 {is the wrong capture.} Re1 37. Rg5+ Kf7 $19) 1/2-1/2

[Event "7th Sharjah Masters 2024"]
[Site "Sharjah"]
[Date "2024.05.22"]
[Round "9.29"]
[White "Bharath Subramaniyam H"]
[Black "Theodorou, Nikolas"]
[Result "0-1"]
[ECO "B33"]
[WhiteElo "2545"]
[BlackElo "2617"]
[Annotator "TA"]
[PlyCount "110"]
[EventDate "2024.05.13"]
[EventType "swiss"]
[EventCountry "UAE"]
[SourceTitle "playchess.com"]
[Source "ChessBase"]
[SourceQuality "1"]
[TimeControl "5400+30"]

{[%evp 47,110,-183,-180,-156,-170,-211,-200,-296,-291,-471,-460,-456,-455,-647,-198,-327,-306,-29984,-387,-396,-352,-338,-345,-336,-265,-467,-472,-470,-454,-520,-462,-514,-437,-481,-512,-524,-526,-524,-523,-670,-663,-762,-751,-962,-697,-698,-993,-976,-948,-1021,-1021,-998,-973,-972,-968,-1791,-1565,-1636,-1524,-1260,-1251,-12833,-6770,-4943,-1752]} 1. e4 {[%emt 0:00:02]} c5 {[%emt 0:00:09]} 2. Nf3 {[%emt 0:00:09]} Nc6 {[%emt 0:00:07]} 3. d4 {[%emt 0:00:06]} cxd4 {[%emt 0:00:07]} 4. Nxd4 {[%emt 0:00:05]} e5 {[%emt 0:00:33]} 5. Ne2 {[%emt 0:04:37]} Nf6 {[%emt 0:02:50]} 6. Nbc3 {[%emt 0:03:08]} Bc5 {[%emt 0:00:06]} 7. Ng3 {[%emt 0:00:15]} O-O {[%emt 0:01:22] B33: Sicilian: Pelikan and Sveshnikov Variations.} 8. Bc4 {[%emt 0:00:10]} d6 {[%emt 0:01:37]} 9. O-O {[%emt 0:00:22]} a6 {[%emt 0:07:10]} 10. Nf5 $146 {[%emt 0:25:03]} ({Predecessor:} 10. Bg5 h6 11. Bxf6 Qxf6 12. Nd5 Qd8 13. c3 Ne7 14. b4 Ba7 15. a4 Be6 16. Qd3 {1-0 Ponkratov,P (2641)-Obolenskikh,D (2547) Cheliabinsk Variation Blitz 2022 (4)}) 10... Be6 {[%emt 0:14:18]} 11. Nd5 {[%emt 0:08:31]} Nxe4 {[%emt 0:28:33]} 12. Qg4 {[%emt 0:03:03]} g6 {[%emt 0:00:01]} 13. Nh6+ {[%emt 0:06:06]} Kg7 {[%emt 0:00:02]} 14. Qxe4 {[%emt 0:00:12]} f5 {[%emt 0:00:02]} 15. Qe2 {[%emt 0:13:58]} b5 {[%emt 0:10:18]} 16. Bb3 {[%emt 0:00:56]} Nd4 {[%emt 0:01:32]} 17. Qd1 {[%emt 0:00:16]} f4 {[%emt 0:00:12]} 18. Ng4 {[%emt 0:03:39]} Qh4 {[%emt 0:00:10]} 19. Nge3 {[%emt 0:14:22]} fxe3 {[%emt 0:11:02]} 20. Bxe3 {[%emt 0:00:26]} Rf5 {[%emt 0:09:37]} 21. Nc7 {[%emt 0:10:31]} Bd7 {[%emt 0:00:02]} 22. g3 {[%emt 0:03:49]} Qh3 {[%emt 0:01:30]} 23. Bxd4 {[%emt 0:00:27]} exd4 {[%emt 0:08:43]} 24. Ne6+ {[%emt 0:00:44]} Kh8 {[%emt 0:00:15]} 25. Nxc5 {[%emt 0:01:30]} dxc5 {[%emt 0:00:21]} 26. f3 {[%emt 0:00:01] [#]} Qh6 $1 {[%emt 0:01:28]} 27. c3 {[%emt 0:00:44]} (27. Qd3 $142) 27... Qe3+ $19 {[%emt 0:00:21]} 28. Kg2 $2 {[%emt 0:00:01]} (28. Rf2 c4 29. Bxc4 bxc4 30. Qxd4+ Qxd4 31. cxd4) 28... Bc6 $19 {[%emt 0:00:39]} 29. cxd4 {[%emt 0:00:33]} Rd8 {[%emt 0:01:11]} (29... cxd4 30. Rc1 Be4 (30... Rc8 $2 31. Rxc6 Rxc6 32. Re1 $18) 31. fxe4 $11) (29... Qxd4 30. Qxd4+ cxd4 31. Rad1 $11) 30. d5 {[%emt 0:01:07]} (30. g4 $142 Rxf3 (30... Rxd4 $2 31. gxf5 Qg5+ 32. Kh1 $19) 31. d5 (31. Rxf3 $2 Rxd4 32. Bc2 Rxd1 $19)) 30... c4 $2 {[%emt 0:00:17]} (30... Rdxd5 {( -> ...Rd2+)} 31. Bxd5 Rxd5) 31. Re1 {[%emt 0:00:34]} (31. Qe1 $142 Qxe1 32. Raxe1 Rfxd5 (32... Bxd5 33. Bd1 $17) 33. Bc2) 31... Qc5 $19 {[%emt 0:00:27]} 32. Qc1 $2 {[%emt 0:01:03]} (32. dxc6 $19 Rxd1 33. Bxd1 Qxc6 34. Rf1) 32... Rfxd5 $2 {[%emt 0:00:21]} (32... Rxf3 {mates} 33. Bxc4 bxc4 (33... Bxd5 $2 34. Bxd5 Qxd5 35. Kg1 $19) 34. Qc2 Qxd5 35. Re4 Rd3 (35... Qxe4 {leads to mate.} 36. Qxe4 Bxe4 37. Kg1 Rd2 38. Re1 c3 39. bxc3 Bc6 40. h4 Rxg3+ 41. Kf1 Bb5+ 42. c4 Bxc4+ 43. Re2 Rxe2 44. a3 Rh2+ 45. Ke1 Rg1#) 36. Rae1 Rd2+ (36... Qxe4+ $2 37. Rxe4 Bxe4+ 38. Kf1 $19) 37. Qxd2 Qxd2+ 38. Kh3 Bxe4 39. Rxe4 Qd7+ (39... Qxb2 40. a3 c3 41. a4 c2 42. Re2 c1=Q 43. Rxb2 Qxb2 44. Kh4 Rd4+ 45. Kg5 Kg7 46. g4 h6+ 47. Kh4 Qxh2#) 40. Kg2 Qd5 (40... Qd2+ {gets mated.} 41. Kh3 Qd7+ 42. Kg2 Qd5 43. Kf3 Qd3+ 44. Kg2 Qxe4+ 45. Kh3 Qf3 46. a3 Rd2 47. Kh4 Qh5#) 41. Kf3 Rf8+ 42. Kg2 Qxe4+ 43. Kh3 Rf2 44. b3 h5 45. bxc4 Qg4#) 33. Qc3+ $19 {[%emt 0:00:00]} Qd4 {[%emt 0:01:01]} 34. Bd1 {[%emt 0:00:12]} Qxc3 {[%emt 0:00:06]} 35. bxc3 {[%emt 0:00:01]} Rd3 {[%emt 0:00:48]} 36. a4 $2 {[%emt 0:00:45]} (36. Re6 Bd7 (36... Rxd1 $2 37. Rxd1 Rxd1 38. Rxc6 $19) 37. Re7 Rxc3 38. Be2) 36... Rxc3 $19 {[%emt 0:00:14]} 37. axb5 {[%emt 0:00:01]} axb5 {[%emt 0:00:13]} 38. Kh3 {[%emt 0:00:24]} Rcd3 {[%emt 0:00:45]} (38... Bxf3 39. Bxf3 Rxf3 40. Ra7 $17) 39. f4 {[%emt 0:00:26]} R3d7 {[%emt 0:00:54]} 40. Bg4 {[%emt 0:00:34]} Rc7 {[%emt 0:00:01]} 41. Rac1 {[%emt 0:01:30]} Kg7 {[%emt 0:00:25]} 42. Kh4 {[%emt 0:00:09]} Rd2 {[%emt 0:00:47]} 43. h3 {[%emt 0:00:12]} Bd5 {[%emt 0:00:28]} 44. Rb1 {[%emt 0:00:56]} c3 {[%emt 0:00:47]} 45. Rec1 {[%emt 0:00:49]} h5 {[%emt 0:00:33]} 46. Bd1 {[%emt 0:00:01]} Rxd1 {[%emt 0:00:25]} 47. Rxd1 {[%emt 0:00:36]} c2 {[%emt 0:00:05]} 48. Rdc1 {[%emt 0:00:05]} cxb1=Q {[%emt 0:00:12]} 49. Rxb1 {[%emt 0:00:03]} Rb7 {[%emt 0:00:15]} 50. Rb4 {[%emt 0:00:07]} Kf6 {[%emt 0:00:20]} 51. Rd4 {[%emt 0:00:13]} Bf7 {[%emt 0:00:19]} 52. Rb4 {[%emt 0:00:10]} Bc4 {[%emt 0:00:07]} 53. g4 {[%emt 0:00:10]} Rh7 {[%emt 0:00:24]} 54. g5+ {[%emt 0:00:13]} Ke6 {[%emt 0:00:58]} 55. Rb1 {[%emt 0:00:08]} Rf7 {[%emt 0:00:19]} 0-1

[Event "7th Sharjah Masters 2024"]
[Site "Sharjah"]
[Date "2024.05.22"]
[Round "9.30"]
[White "Nikitenko, Mihail"]
[Black "Ivanchuk, Vasyl"]
[Result "1/2-1/2"]
[ECO "C42"]
[WhiteElo "2529"]
[BlackElo "2609"]
[Annotator "RC"]
[PlyCount "153"]
[EventDate "2024.05.13"]
[EventType "swiss"]
[EventCountry "UAE"]
[SourceTitle "playchess.com"]
[Source "ChessBase"]
[SourceQuality "1"]
[TimeControl "5400+30"]

1. e4 {[%emt 0:00:04]} e5 {[%emt 0:00:04]} 2. Nf3 {[%emt 0:00:07]} Nf6 {[%emt 0:00:02]} 3. Nxe5 {[%emt 0:00:17]} d6 {[%emt 0:00:04]} 4. Nf3 {[%emt 0:00:07]} Nxe4 {[%emt 0:00:03]} 5. Nc3 {[%emt 0:00:12]} Nxc3 {[%emt 0:00:06]} 6. dxc3 {[%emt 0:00:04]} Be7 {[%emt 0:00:02]} 7. Be3 {[%emt 0:00:08]} O-O {[%emt 0:00:04]} 8. Qd2 {[%emt 0:00:05]} Nd7 {[%emt 0:00:02]} 9. O-O-O {[%emt 0:00:31]} Nf6 {[%emt 0:00:14]} 10. Bd3 {[%emt 0:01:28]} Re8 {[%emt 0:00:08]} 11. Rde1 {[%emt 0:03:33]} c6 {[%emt 0:03:08]} 12. Kb1 {[%emt 0:01:01]} Qa5 {[%emt 0:04:59]} 13. c4 {[%emt 0:00:46]} Qxd2 {[%emt 0:00:26]} 14. Bxd2 {[%emt 0:00:23]} Bd7 {[%emt 0:00:55]} 15. h3 {[%emt 0:03:34]} h6 {[%emt 0:15:08]} 16. Nd4 {[%emt 0:04:27]} d5 {[%emt 0:00:58]} 17. cxd5 {[%emt 0:04:51]} Nxd5 {[%emt 0:01:26]} 18. c3 {[%emt 0:04:09]} Bc5 {[%emt 0:05:52]} 19. Bc4 {[%emt 0:07:39]} Ne7 {[%emt 0:16:04]} 20. Re5 {[%emt 0:03:45]} Bxd4 {[%emt 0:09:53]} 21. cxd4 {[%emt 0:00:08]} Ng6 {[%emt 0:07:43]} 22. Rxe8+ {[%emt 0:01:03]} Rxe8 {[%emt 0:00:03]} 23. Kc2 {[%emt 0:00:32]} Nh4 {[%emt 0:05:54]} 24. g4 {[%emt 0:00:39]} Be6 {[%emt 0:02:32]} 25. Bxe6 {[%emt 0:00:18]} Rxe6 {[%emt 0:00:16]} 26. Kd3 {[%emt 0:00:04]} f5 {[%emt 0:02:54]} 27. b4 {[%emt 0:01:32]} Rg6 {[%emt 0:02:34]} 28. gxf5 {[%emt 0:05:05]} Nxf5 {[%emt 0:00:30]} 29. a4 {[%emt 0:01:03]} Rd6 {[%emt 0:03:01]} 30. Be3 {[%emt 0:01:25]} Rd5 {[%emt 0:04:34]} 31. Rc1 {[%emt 0:03:12]} a6 {[%emt 0:00:34]} 32. Rc5 {[%emt 0:05:34]} Kf7 {[%emt 0:01:12]} 33. Rc4 {[%emt 0:03:06]} Ke7 {[%emt 0:06:23]} 34. Rc1 {[%emt 0:00:04]} Ke6 {[%emt 0:02:50]} 35. Re1 {[%emt 0:00:52]} Kd7 {[%emt 0:00:40]} 36. Rg1 {[%emt 0:00:56]} g5 {[%emt 0:04:22]} 37. Rb1 {[%emt 0:01:19]} Ke6 {[%emt 0:00:46]} 38. Rf1 {[%emt 0:00:18]} a5 {[%emt 0:02:25]} 39. Rb1 {[%emt 0:03:59]} axb4 {[%emt 0:00:25]} 40. Rxb4 {[%emt 0:00:05]} Nd6 {[%emt 0:00:23]} 41. Ke2 {[%emt 0:00:40]} Rf5 {[%emt 0:00:40]} 42. Rb1 {[%emt 0:02:09]} Ra5 {[%emt 0:00:10]} 43. Rb4 {[%emt 0:00:04]} Rf5 {[%emt 0:00:06]} 44. Rb1 {[%emt 0:00:06]} Rf8 {[%emt 0:00:28]} 45. Rb4 {[%emt 0:05:04]} Kd5 {[%emt 0:00:13]} 46. Rb1 {[%emt 0:00:04]} Rf7 {[%emt 0:00:57]} 47. Rc1 {[%emt 0:00:49]} Nc4 {[%emt 0:00:14]} 48. h4 {[%emt 0:01:57]} gxh4 {[%emt 0:00:05]} 49. Rh1 {[%emt 0:00:04]} h5 {[%emt 0:01:29]} 50. Rxh4 {[%emt 0:00:17]} Rh7 {[%emt 0:00:04]} 51. Bg5 {[%emt 0:01:02]} Nd6 {[%emt 0:01:19]} 52. Kd3 {[%emt 0:00:30]} Nf5 {[%emt 0:00:31]} 53. Re4 {[%emt 0:00:06]} Kd6 {[%emt 0:00:13]} 54. Re5 {[%emt 0:00:20]} Rf7 {[%emt 0:00:26]} 55. Ke4 {[%emt 0:00:24]} Ne7 {[%emt 0:00:51]} 56. f4 {[%emt 0:02:06]} h4 {[%emt 0:00:25]} 57. Kf3 {[%emt 0:06:36]} Nd5 {[%emt 0:00:20]} 58. Re1 {[%emt 0:03:06]} h3 {[%emt 0:00:27]} 59. Rh1 {[%emt 0:00:14]} Rh7 {[%emt 0:00:18]} 60. Kg3 {[%emt 0:00:48]} Nc3 {[%emt 0:00:51]} 61. Bh4 {[%emt 0:01:42]} Ke6 {[%emt 0:00:36]} 62. Kg4 {[%emt 0:00:17]} Rg7+ {[%emt 0:00:23]} 63. Bg5 {[%emt 0:00:03]} Ne4 {[%emt 0:00:05]} 64. Rh2 {[%emt 0:00:45]} b5 {[%emt 0:00:38]} 65. axb5 {[%emt 0:01:22]} cxb5 {[%emt 0:00:01]} 66. Rb2 {[%emt 0:00:06]} b4 {[%emt 0:00:38]} 67. Kxh3 {[%emt 0:00:12]} Rb7 {[%emt 0:00:41]} 68. Kg4 {[%emt 0:00:09]} Kd5 {[%emt 0:00:53]} 69. Kf5 {[%emt 0:00:57]} b3 {[%emt 0:00:39]} 70. Be7 {[%emt 0:01:45]} Nc3 {[%emt 0:00:28]} 71. Kg6 {[%emt 0:01:16]} Rxe7 {[%emt 0:00:37]} 72. Rxb3 {[%emt 0:00:04]} Kxd4 {[%emt 0:00:22]} 73. Rxc3 {[%emt 0:00:34]} Kxc3 {[%emt 0:00:05]} 74. f5 {[%emt 0:00:03]} Kd4 {[%emt 0:00:29]} 75. f6 {[%emt 0:00:04]} Ra7 {[%emt 0:00:07]} 76. f7 {[%emt 0:00:04]} Rxf7 {[%emt 0:00:03]} 77. Kxf7 {[%emt 0:00:04]} 1/2-1/2